lending/lending_fUSD_20240721
["ID","MTS","AMOUNT","RATE_DAILY","PERIOD"]
[332811628,1721544633061,-1003.44,0.00012855,2]
[332811629,1721544633073,-3422.04110642,0.00012855,2]
[332811630,1721544633110,-4545.15253759,0.00012855,2]
[332811631,1721544633125,-1363.84746241,0.00012855,2]
[332811632,1721544633136,-2880.57812754,0.00012855,2]
[332811633,1721544633145,-1500.0,0.00012855,2]
[332811634,1721544633154,-94.94216095,0.00012866,2]
[332811635,1721544633166,-299.6900001,0.00012866,2]
[332811636,1721544633177,-455.85444,0.00012866,2]
[332811637,1721544633188,-335.08950845,0.00012866,2]
[332811638,1721544633199,-276.52,0.00012866,2]
[332811639,1721544633210,-306.20467746,0.00012866,2]
[332811640,1721544633222,-841.96921304,0.00012866,2]
[332811641,1721544633232,-858.03078696,0.00012883,2]
[332811642,1721544633244,-445.4416633,0.00012883,2]
[332811643,1721544633254,-1148.64460566,0.00012883,2]
[332811644,1721544633264,-752.54480526,0.00012924,2]
[332811645,1721544633274,-156.77059006,0.00012928,2]
[332811646,1721544633284,-693.45823084,0.00012928,2]
[332811647,1721544633294,-204.46037081,0.00012928,2]
[332811648,1721544633408,-374.02437009,0.00012928,2]
[332811649,1721544633419,-374.6275714,0.00012995,2]
[332811650,1721544633431,-379.96940755,0.00012995,2]
[332811651,1721544633441,-266.65,0.00013,2]
[332811652,1721544633452,-2260.0061394,0.00013,2]
[332811653,1721544633463,-11491.90858639,0.00013,2]
[332811654,1721544633474,-14333.32598583,0.00013,2]
[332811655,1721544633483,-155.28669553,0.00013066,2]
[332811656,1721544633494,-263.3923088,0.00013125,2]
[332811657,1721544633504,-94.21408013,0.00013125,2]
[332811658,1721544633515,-94.25484221,0.00013125,2]
[332811659,1721544633524,-470.04585678,0.00013132,2]
[332811660,1721544633537,-337.01913656,0.00013132,2]
[332811661,1721544633548,-139.89560211,0.00013132,2]
[332811662,1721544633558,-292.10440189,0.00013133,2]
[332811663,1721544633569,-237.81198193,0.00013133,2]
[332811664,1721544633578,-201.50649651,0.00013165,2]
[332811665,1721544633590,-41.3995698,0.00013165,2]
[332811666,1721544633600,-222.95946683,0.00013283,2]
[332811667,1721544633609,-2295.02096337,0.00013314,2]
[332811668,1721544633620,-3255.09037,0.00013314,2]
[332811669,1721544633632,-799.0327007,0.00013314,2]
[332811670,1721544633643,-14548.85596593,0.00013314,2]
[332811671,1721544633653,-155.71391416,0.00013499,2]
[332811672,1721544633663,-19701.43011291,0.0001351,2]
[332811686,1721544638356,-2689.89278036,0.0001351,2]
[332811687,1721544638370,-1662.12038026,0.0001351,2]
[332811688,1721544638381,-251.9475,0.0001351,2]
[332811689,1721544638405,-456.16527009,0.0001351,2]
[332811690,1721544638415,-198.14,0.00013515,2]
[332811691,1721544638424,-254.64693586,0.00013561,2]
[332811692,1721544638434,-4527.38419828,0.0001358,2]
[332811693,1721544638453,-2249.84509346,0.0001358,2]
[332811694,1721544638462,-250.0,0.00013699,2]
[332811695,1721544638471,-275.79628788,0.00013699,2]
[332811696,1721544638483,-42.19371212,0.00013699,2]
[332811697,1721544638493,-1612.23,0.00013699,2]
[332811698,1721544638503,-23183.79,0.00013699,2]
[332811699,1721544638513,-200.0,0.00013699,2]
[332811700,1721544638522,-2751.0,0.00013699,2]
[332811701,1721544638531,-151.76,0.00013699,2]
[332811702,1721544638540,-300.0,0.000137,5]
[332811703,1721544638550,-4450.74723972,0.0001379,2]
[332811704,1721544638559,-2107.89922723,0.00013799,2]
[332811705,1721544638568,-600.0,0.000138,5]
[332811706,1721544638578,-12162.94434468,0.00013889,2]
[332811707,1721544638588,-2734.05441,0.00013889,2]
[332811708,1721544638607,-399.08923112,0.00013889,2]
[332811712,1721544638630,-165.73092344,0.00013889,2]
[332811714,1721544638639,-169.64893334,0.00013896,2]
[332811716,1721544638648,-318.82205406,0.00013897,2]
[332811718,1721544638658,-393.97808916,0.00013899,2]
[332811719,1721544638669,-6667.12952637,0.00013899,2]
[332811731,1721544638854,-2529.87702956,0.00013899,2]
[332811871,1721544640365,-409.15439696,0.00013899,2]
[332811874,1721544640378,-528.26614128,0.00013899,2]
[332811876,1721544640388,-158.12858035,0.000139,2]
[332811878,1721544640398,-1000.0,0.000139,5]
[332811880,1721544640408,-191.87,0.00013973,2]
[332811882,1721544640418,-1254.12953695,0.00013979,2]
[332811884,1721544640428,-73441.65997644,0.0001399,3]
[332811886,1721544640440,-5436.26185265,0.0001399,3]
[332811888,1721544640451,-85246.05842998,0.0001399,3]
[332811891,1721544640464,-640.98643833,0.0001399,3]
[332811894,1721544640484,-94876.4804946,0.0001399,3]
[332811896,1721544640494,-172.685305,0.0001399,2]
[332811898,1721544640504,-172.685305,0.0001399,2]
[332811900,1721544640513,-1894.10490657,0.00013997,2]
[332811902,1721544640523,-500.0,0.00013999,2]
[332811904,1721544640533,-182.84681816,0.00013999,2]
[332811906,1721544640543,-500.0,0.00013999,2]
[332811908,1721544640552,-228.74746582,0.00013999,2]
[332811910,1721544640561,-500.0,0.00013999,2]
[332811912,1721544640571,-357.81875067,0.00013999,2]
[332811914,1721544640581,-500.0,0.00013999,2]
[332811916,1721544640590,-6711.27579714,0.00013999,2]
[332811918,1721544640599,-191.27787355,0.00013999,2]
[332811920,1721544640609,-221761.62172279,0.00014,2]
[332811922,1721544640620,-70264.24691589,0.00014,2]
[332811924,1721544640632,-50436.87825153,0.00014,2]
[332811927,1721544640657,-861.50000005,0.00014,2]
[332811934,1721544640718,-499.9996419,0.00014,2]
[332812183,1721544643591,-1025.25340289,0.00013996,2]
[332812184,1721544643603,-660.19,0.00013996,2]
[332812185,1721544643614,-2084.09343301,0.00013996,2]
[332812186,1721544643625,-5488.13854607,0.00013996,2]
[332812187,1721544643635,-437.37350588,0.00014,2]
[332812188,1721544643646,-9013.5259233,0.00014,2]
[332812191,1721544643745,-419422.7413071,0.00014,2]
[332812193,1721544643756,-292.35005528,0.00014,2]
[332812195,1721544643767,-14566.77179293,0.00014,2]
[332812198,1721544643778,-284.2293679,0.00014,2]
[332812292,1721544644667,-10713.66373214,0.00014,2]
[332812413,1721544645882,-242.90606631,0.00013133,2]
[332812451,1721544646253,-377.28,0.00014,2]
[332812453,1721544646265,-670.5,0.00014,2]
[332812456,1721544646279,-1058.18632061,0.00014,2]
[332812464,1721544646337,-2645.13642782,0.00014,2]
[332812495,1721544646615,-1915.98816515,0.00014,2]
[332812562,1721544647241,-384.50318454,0.00014,2]
[332812576,1721544647370,-1573.58351148,0.00014,2]
[332812578,1721544647382,-369.15130269,0.00014,2]
[332812589,1721544647528,-307.78884846,0.00014,2]
[332812590,1721544647540,-1202.8380248,0.00014,2]
[332812600,1721544650045,-150.0,0.00013133,2]
[332812601,1721544650226,-150.0,0.00013133,2]
[332812602,1721544650266,-150.0,0.00013133,2]
[332812603,1721544650344,-150.0,0.00013133,2]
[332812604,1721544650405,-150.0,0.00013133,2]
[332812605,1721544650509,-279.87702956,0.00013133,2]
[332812606,1721544650571,-150.0,0.00013133,2]
[332812607,1721544651211,534.9197,0.00011972,2]
[332812608,1721544729137,155.11169351,0.00011972,2]
[332812609,1721544733664,373.79085991,0.00011972,2]
[332812610,1721544734789,177.04802666,0.00011972,2]
[332812611,1721544775176,155.0,0.00011972,2]
[332812612,1721544847878,-900.0,0.00013607,2]
[332812613,1721544858457,-432.81134934,0.00013463,2]
[332812614,1721544866469,209.09,0.00018849,30]
[332812619,1721545197598,1684.82,0.00010867,2]
[332812620,1721545402062,191.66,0.00018849,30]
[332812623,1721545620131,11315.18,0.00011959,2]
[332812624,1721545620155,13446.37604362,0.00011959,2]
[332812629,1721545713051,10673.94796086,0.00011959,2]
[332812630,1721545714388,245.04256501,0.00011959,2]
[332812631,1721545729875,1600.57,0.00010459,2]
[332812632,1721545747093,3066.02362384,0.00011959,2]
[332812667,1721545834363,-3363.52112386,0.00012216,2]
[332812668,1721545834374,-991.0,0.00012315,2]
[332812669,1721545834384,-202.3175963,0.00012316,2]
[332812670,1721545834393,-169.18,0.00012324,2]
[332812671,1721545834403,-2029.76,0.00012344,2]
[332812672,1721545834412,-500.0,0.00012356,2]
[332812673,1721545834421,-300.0,0.00012363,2]
[332812674,1721545834430,-7670.13695818,0.00012364,2]
[332812675,1721545834439,-839.08432165,0.00012365,2]
[332812676,1721545834459,-2174.47,0.00012365,2]
[332812677,1721545834471,-524.91567835,0.00012365,2]
[332812678,1721545834481,-250.0,0.00012415,2]
[332812679,1721545834490,-158.52,0.00012456,2]
[332812680,1721545834499,-140.88432165,0.00012462,2]
[332812681,1721545834510,-6592.21208359,0.00012462,2]
[332812682,1721545834522,-397.56791311,0.00012462,2]
[332812683,1721545834533,-4602.23029457,0.00012462,2]
[332812684,1721545834542,-23900.0,0.00012472,2]
[332812685,1721545834552,-150.0,0.00012482,2]
[332812686,1721545834561,-796.69,0.00012485,2]
[332812687,1721545834570,-572.32,0.00012539,2]
[332812688,1721545834579,-499.99,0.00012539,2]
[332812689,1721545834589,-796.0,0.00012539,2]
[332812690,1721545834599,-1157.7,0.00012539,2]
[332812691,1721545834608,-159.09090106,0.00012626,2]
[332812692,1721545834617,-150.0,0.00012655,2]
[332812693,1721545834626,-2080.26,0.00012656,2]
[332812694,1721545834636,-2631.03,0.00012681,2]
[332812695,1721545834646,-500.0,0.0001269,2]
[332812696,1721545834655,-1600.57,0.00012723,2]
[332812697,1721545834664,-521.74362309,0.00012826,2]
[332812698,1721545834673,-890.74057297,0.00012855,2]
[332812699,1721545834682,-306.18145975,0.00012883,2]
[332812700,1721545834935,-299.99,0.00012931,2]
[332812701,1721545834968,-760.6371,0.00013033,2]
[332812702,1721545834978,-9374.13849095,0.0001331,2]
[332812703,1721545834988,-9272.53679973,0.0001331,2]
[332812704,1721545834999,-15461.81890924,0.00013378,2]
[332812705,1721545835008,-19591.03626364,0.00013378,2]
[332812706,1721545835019,-4320.1023584,0.00013398,2]
[332812707,1721545835028,-10528.40518333,0.00013398,2]
[332812708,1721545835038,-10528.40518333,0.00013479,2]
[332812709,1721545835047,-1255.14092913,0.00013489,2]
[332812710,1721545835056,-199.77828073,0.00013499,2]
[332812711,1721545835066,-155.30785016,0.0001351,2]
[332812712,1721545835075,-1803.5298192,0.00013579,2]
[332812713,1721545835091,-935.25814264,0.00013579,2]
[332812714,1721545835102,-98.37442655,0.00013579,2]
[332812715,1721545835111,-593.972778,0.00013648,2]
[332812716,1721545835120,-155.40715858,0.0001367,2]
[332812717,1721545835129,-241.48,0.00013676,2]
[332812718,1721545835138,-540.52675567,0.00013698,2]
[332812719,1721545835148,-330.15183,0.00013698,2]
[332812720,1721545835158,-155.0,0.00013698,2]
[332812721,1721545835167,-420.32699895,0.00013698,2]
[332812722,1721545835177,-247.45540088,0.00013698,2]
[332812723,1721545835187,-151.76,0.00013699,2]
[332812724,1721545835196,-250.0,0.00013699,2]
[332812725,1721545835206,-1019.46,0.00013699,2]
[332812726,1721545835218,-266.52913174,0.00013699,2]
[332812727,1721545835229,-302.11780374,0.00013699,2]
[332812728,1721545835240,-997.8724334,0.00013699,2]
[332812729,1721545835276,-861.94063112,0.00013699,2]
[332812730,1721545835286,-365.00313861,0.00013699,2]
[332812731,1721545835296,-204.18664002,0.0001372,2]
[332812732,1721545835312,-266.76659385,0.0001372,2]
[332812733,1721545835321,-383.99247552,0.00013794,2]
[332812734,1721545835331,-297.98002004,0.000139,2]
[332812735,1721545835340,-300.0,0.000139,5]
[332812736,1721545835351,-1914.93653265,0.000139,2]
[332812737,1721545835359,-169.64893334,0.000139,2]
[332812738,1721545835368,-223.43,0.00013973,2]
[332812739,1721545835378,-501.7,0.0001398,3]
[332812740,1721545835387,-155.87620856,0.0001399,3]
[332812741,1721545835399,-3766.1,0.0001399,3]
[332812742,1721545835410,-4866.61354802,0.0001399,3]
[332812743,1721545835420,-1629.4257306,0.0001399,3]
[332812744,1721545835431,-642.3977412,0.0001399,3]
[332812745,1721545838476,-365.00313861,0.00013698,2]
[332812746,1721545838486,-247.67132325,0.0001372,2]
[332812747,1721545838495,-190.65053814,0.0001399,3]
[332812748,1721545838507,-730.4022,0.0001399,3]
[332812749,1721545838532,-205.96700158,0.0001399,3]
[332812750,1721545838541,-52.05813483,0.0001399,2]
[332812751,1721545838554,-120.62717017,0.0001399,2]
[332812752,1721545838564,-150.34969157,0.00013999,2]
[332812753,1721545838573,-7246.29284158,0.00014,2]
[332812754,1721545838607,-659.75132017,0.00014,2]
[332812755,1721545838668,-631881.14660785,0.00014,2]
[332812756,1721545838678,-1461.14,0.00014,2]
[332812757,1721545838688,-151.0,0.00014,2]
[332812758,1721545838697,-151.525775,0.00014,2]
[332812759,1721545838707,-151.0,0.00014,2]
[332812760,1721545838716,-151.0,0.00014,2]
[332812761,1721545838726,-642.82049,0.00014,2]
[332812762,1721545838735,-158.52,0.00014013,2]
[332812763,1721545838745,-369.78252598,0.00014283,2]
[332812764,1721545838755,-158.80140331,0.00014283,2]
[332812765,1721545838765,-300.0,0.0001443,2]
[332812767,1721545838775,-2508.12017598,0.00014451,2]
[332812769,1721545838784,-3066.02362384,0.00014496,2]
[332812771,1721545838794,-266.95796456,0.00014519,2]
[332812773,1721545838803,-1015.61941401,0.00014558,3]
[332812775,1721545838813,-1000.0,0.00014588,2]
[332812777,1721545838823,-1000.0,0.00014588,2]
[332812779,1721545838833,-500.0,0.00014588,2]
[332812780,1721545838842,-151.76,0.00014612,2]
[332812782,1721545838852,-180.0,0.000147,5]
[332812784,1721545838861,-176.52011093,0.00014899,2]
[332812787,1721545838871,-156.44573836,0.00014899,2]
[332812789,1721545838881,-1600.57,0.00014987,2]
[332812791,1721545838890,-155.24720148,0.00014999,2]
[332812793,1721545838900,-2068.57686242,0.00015,2]
[332812795,1721545838910,-150.0,0.00015,2]
[332812797,1721545838920,-642.82049,0.0001504,2]
[332812799,1721545838930,-159.40595947,0.0001531,2]
[332812801,1721545838939,-155.4280801,0.00015369,2]
[332812803,1721545838949,-241.48,0.00015386,2]
[332812805,1721545838959,-1000.0,0.0001541,2]
[332812807,1721545838969,-1000.0,0.0001541,2]
[332812809,1721545838979,-500.0,0.0001541,2]
[332812811,1721545838988,-151.76,0.00015525,2]
[332812813,1721545838998,-158.52,0.0001557,2]
[332812815,1721545839008,-1000.0,0.00015643,2]
[332812817,1721545839017,-227.49811675,0.0001587,2]
[332812819,1721545839027,-157.85211343,0.00015999,2]
[332812821,1721545839036,-5000.0,0.00016,2]
[332812823,1721545839046,-155.11844684,0.00016159,2]
[332812825,1721545839055,-1015.61941401,0.00016222,3]
[332812827,1721545839065,-1000.0,0.00016232,2]
[332812829,1721545839074,-1000.0,0.00016232,2]
[332812831,1721545839084,-500.0,0.00016232,2]
[332812833,1721545839093,-642.8205,0.0001629,2]
[332812834,1721545839103,-1914.93653259,0.00016411,2]
[332812836,1721545839113,-151.76,0.00016438,2]
[332812838,1721545839123,-620.16435506,0.00016441,2]
[332812840,1721545839132,-439.46122706,0.0001647,2]
[332812842,1721545839142,-155.86330489,0.0001647,2]
[332812844,1721545839151,-297.98002003,0.0001665,2]
[332812846,1721545839160,-2304.0,0.000167,2]
[332812848,1721545839170,-1700.0,0.0001678,2]
[332812850,1721545839179,-219.03326664,0.00016855,2]
[332812852,1721545839189,-484.13297627,0.00016882,2]
[332812854,1721545839199,-1073.15860955,0.00016882,2]
[332812856,1721545839208,-359.66792605,0.00016948,2]
[332812858,1721545839220,-1015.61941401,0.0001699,3]
[332812860,1721545839229,-530.20230682,0.00016999,2]
[332812862,1721545839239,-1001.0,0.00017,2]
[332812864,1721545839248,-200.0,0.00017,2]
[332812866,1721545839258,-2654.0,0.00017,2]
[332812868,1721545839267,-1000.0,0.00017054,2]
[332812870,1721545839276,-500.0,0.00017054,2]
[332812872,1721545839286,-241.48,0.00017095,2]
[332812874,1721545839295,-158.52,0.00017127,2]
[332812876,1721545839308,-1600.57,0.00017251,2]
[332812878,1721545839317,-1700.0,0.00017328,2]
[332812880,1721545839326,-151.0,0.00017353,2]
[332812882,1721545839336,-151.0,0.00017353,2]
[332812884,1721545839346,-265.163313,0.00017353,2]
[332812886,1721545839355,-215.56315158,0.0001738,2]
[332812888,1721545839366,-276.62111547,0.00017533,2]
[332812890,1721545839378,-196.8459116,0.00017533,2]
[332812892,1721545839387,-642.82049,0.0001754,2]
[332812894,1721545839396,-1000.0,0.00017599,2]
[332812896,1721545839406,-225.060383,0.00017599,2]
[332812898,1721545839416,-603.0,0.00017659,2]
[332812900,1721545839425,-151.0,0.00017659,2]
[332812902,1721545839435,-151.0,0.00017659,2]
[332812904,1721545839444,-151.0,0.00017659,2]
[332812906,1721545839454,-154.413608,0.00017659,2]
[332812908,1721545839465,-151.0,0.00017659,2]
[332812910,1721545839474,-151.0,0.00017659,2]
[332812912,1721545839484,-151.0,0.00017659,2]
[332812914,1721545839496,-152.322118,0.00017659,2]
[332812916,1721545839506,-174.094256,0.00017659,2]
[332812918,1721545839515,-151.0,0.00017866,2]
[332812920,1721545839524,-151.99816,0.00017866,2]
[332812922,1721545839533,-151.0,0.00017866,2]
[332812924,1721545839542,-152.990237,0.00017866,2]
[332812926,1721545839551,-152.796952,0.00017866,2]
[332812928,1721545839560,-1000.0,0.00017876,2]
[332812930,1721545839569,-167.149442,0.00017876,2]
[332812932,1721545839579,-167.149442,0.00017876,2]
[332812934,1721545839588,-1700.0,0.00017876,2]
[332812936,1721545839598,-1015.61941401,0.0001799,3]
[332812938,1721545839608,-1575.58463721,0.00018,2]
[332812940,1721545839618,-150.0,0.00018,2]
[332812942,1721545839628,-1000.0,0.0001815,2]
[332812944,1721545839637,-500.0,0.0001815,2]
[332812947,1721545839647,-900.0,0.00018424,2]
[332812949,1721545839657,-151.0,0.00018424,2]
[332812950,1721545839666,-1700.0,0.00018424,2]
[332812952,1721545839675,-169.18,0.00018486,2]
[332812954,1721545839684,-166.46008003,0.00018656,2]
[332812956,1721545839695,-158.52,0.00018684,2]
[332812958,1721545839704,-4096.78398648,0.00018704,2]
[332812960,1721545839714,-258.23415159,0.00018755,2]
[332812962,1721545839724,-642.8205,0.0001879,2]
[332812964,1721545839734,-241.48,0.00018805,2]
[332812966,1721545839744,-2000.0,0.00018849,2]
[332812968,1721545839755,-200.0,0.00018849,2]
[332812970,1721545839765,-340.38044388,0.00018849,4]
[332812972,1721545839774,-2000.0,0.00018849,2]
[332812974,1721545839784,-200.0,0.00018849,2]
[332812976,1721545839795,-2000.0,0.00018849,2]
[332812978,1721545839805,-200.0,0.00018849,2]
[332812980,1721545839814,-2000.0,0.00018849,2]
[332812982,1721545839824,-1015.61941401,0.00018885,3]
[332812984,1721545839834,-1914.93653259,0.00018922,2]
[332812986,1721545839844,-1000.0,0.00018972,2]
[332812988,1721545839854,-900.0,0.00018972,2]
[332812990,1721545839863,-250.0,0.00019,2]
[332812992,1721545839874,-2000.0,0.00019037,2]
[332812994,1721545839883,-200.0,0.00019037,2]
[332812996,1721545839893,-2000.0,0.00019037,2]
[332812998,1721545839902,-200.0,0.00019037,2]
[332813000,1721545839911,-2000.0,0.00019037,2]
[332813002,1721545839921,-200.0,0.00019037,2]
[332813004,1721545839930,-1653.91880853,0.00019037,2]
[332813006,1721545839940,-1019.46,0.00019178,2]
[332813008,1721545839949,-347.805978,0.00019178,2]
[332813010,1721545839963,-347.805978,0.00019178,2]
[332813012,1721545839974,-347.805978,0.00019178,2]
[332813014,1721545839984,-347.805978,0.00019178,2]
[332813016,1721545839994,-2000.0,0.00019228,2]
[332813018,1721545840003,-2000.0,0.00019228,2]
[332813020,1721545840013,-200.0,0.00019228,2]
[332813022,1721545840023,-200.0,0.00019228,2]
[332813024,1721545840033,-1015.61941401,0.00019236,3]
[332813026,1721545840042,-1000.0,0.00019246,2]
[332813028,1721545840052,-500.0,0.00019246,2]
[332813030,1721545840062,-155.31941387,0.00019259,2]
[332813032,1721545840072,-155.0,0.00019319,2]
[332813034,1721545840082,-1277.24848695,0.00019387,2]
[332813036,1721545840092,-297.98002003,0.000194,2]
[332813038,1721545840102,-200.0,0.0001942,2]
[332813040,1721545840111,-200.0,0.0001942,2]
[332813042,1721545840121,-1600.57,0.00019515,2]
[332813044,1721545840130,-1700.0,0.0001952,2]
[332813046,1721545840140,-900.0,0.0001952,2]
[332813048,1721545840149,-1000.0,0.00019554,2]
[332813050,1721545840159,-347.805978,0.00019604,2]
[332813052,1721545840169,-347.805978,0.00019604,2]
[332813054,1721545840178,-151.0,0.00019604,2]
[332813056,1721545840188,-151.0,0.00019604,2]
[332813058,1721545840197,-151.0,0.00019604,2]
[332813060,1721545840207,-151.0,0.00019604,2]
[332813062,1721545840217,-152.970103,0.00019604,2]
[332813064,1721545840227,-200.0,0.00019614,2]
[332813066,1721545840236,-431.66184032,0.00019725,2]
[332813069,1721545840245,-155.31941387,0.00019896,2]
[332813072,1721545840254,-600.0,0.000199,7]
[332813075,1721545840264,-3211.35,0.00019937,2]
[332813078,1721545840274,-151.0,0.00019937,2]
[332813081,1721545840284,-152.273275,0.0001999,2]
[332813084,1721545840293,-1015.61941401,0.0001999,4]
[332813087,1721545840306,-2898.18252468,0.0002,2]
[332813090,1721545840315,-151.0,0.0002,2]
[332813092,1721545840324,-151.0,0.0002,2]
[332813093,1721545840333,-642.82049,0.0002004,2]
[332813095,1721545840344,-1000.0,0.00020068,2]
[332813097,1721545840354,-900.0,0.00020068,2]
[332813123,1721545840584,-167.149442,0.00020133,2]
[332813126,1721545840606,-167.149442,0.00020133,2]
[332813128,1721545840616,-152.795142,0.00020141,2]
[332813130,1721545840625,-1000.0,0.00020342,2]
[332813132,1721545840635,-500.0,0.00020342,2]
[332813134,1721545840644,-10477.84513267,0.0002038,2]
[332813136,1721545840654,-1039.56244542,0.0002038,2]
[332813138,1721545840663,-223.43,0.00020447,2]
[332813140,1721545840673,-241.48,0.00020514,2]
[332813142,1721545840683,-1700.0,0.00020616,2]
[332813143,1721545840692,-900.0,0.00020616,2]
[332813145,1721545840702,-275.90399101,0.0002064,2]
[332813147,1721545840712,-2304.40390414,0.000208,2]
[332813150,1721545840722,-155.0,0.00020831,2]
[332813151,1721545840732,-946.26508788,0.00020831,2]
[332813153,1721545840741,-531.91796595,0.00020831,2]
[332813155,1721545840751,-202.32166912,0.00020831,2]
[332813157,1721545840761,-379.21592298,0.00021,2]
[332813159,1721545840770,-300.0,0.00021,2]
[332813161,1721545840780,-1000.0,0.00021164,2]
[332813163,1721545840790,-1015.61941401,0.00021236,4]
[332813165,1721545840799,-4096.78398648,0.00021246,2]
[332813167,1721545840809,-150.292,0.00021325,2]
[332813169,1721545840818,-1914.93653259,0.00021433,2]
[332813171,1721545840829,-1000.0,0.00021438,2]
[332813174,1721545840841,-500.0,0.00021438,2]
[332813176,1721545840851,-151.0,0.00021438,2]
[332813178,1721545840860,-151.0,0.00021438,2]
[332813180,1721545840870,-151.0,0.00021459,2]
[332813182,1721545840879,-151.0,0.00021509,2]
[332813183,1721545840888,-151.0,0.00021509,2]
[332813185,1721545840898,-183.422278,0.00021509,2]
[332813187,1721545840907,-183.422278,0.00021509,2]
[332813189,1721545840917,-151.0,0.00021509,2]
[332813191,1721545840926,-151.0,0.00021509,2]
[332813193,1721545840936,-151.0,0.00021509,2]
[332813195,1721545840945,-151.0,0.00021509,2]
[332813197,1721545840956,-151.0,0.00021509,2]
[332813199,1721545840966,-151.0,0.00021509,2]
[332813201,1721545840975,-1000.0,0.00021509,2]
[332813203,1721545840984,-258.0,0.000216,2]
[332813205,1721545840994,-876.68562135,0.00021697,2]
[332813207,1721545841004,-421.5002769,0.00021697,2]
[332813209,1721545841014,-4572.1014425,0.00021697,2]
[332813211,1721545841023,-1000.0,0.00021698,2]
[332813213,1721545841033,-1000.0,0.00021698,2]
[332813215,1721545841044,-1000.0,0.00021698,2]
[332813217,1721545841053,-1000.0,0.00021698,2]
[332813219,1721545841063,-1000.0,0.00021698,2]
[332813221,1721545841074,-1000.0,0.00021698,2]
[332813223,1721545841083,-1000.0,0.00021698,2]
[332813225,1721545841094,-1000.0,0.00021698,2]
[332813227,1721545841104,-1000.0,0.00021698,2]
[332813229,1721545841114,-1000.0,0.00021698,2]
[332813231,1721545841123,-1000.0,0.00021698,2]
[332813233,1721545841134,-1000.0,0.00021698,2]
[332813235,1721545841143,-610.65927919,0.00021698,2]
[332813237,1721545841153,-1700.0,0.00021712,2]
[332813239,1721545841163,-236.762721,0.00021712,2]
[332813241,1721545841173,-151.0,0.00021712,2]
[332813243,1721545841183,-900.0,0.00021712,2]
[332813245,1721545841192,-1600.57,0.00021779,2]
[332813247,1721545841202,-1015.61941401,0.00021908,4]
[332813249,1721545841213,-247.05,0.00021918,2]
[332813251,1721545841223,-155.26,0.00021918,2]
[332813252,1721545841232,-155.08301306,0.00021918,2]
[332813253,1721545841242,-3007.0,0.00022,3]
[332813254,1721545841252,-1525.25313772,0.00022,2]
[332813255,1721545841261,-151.0,0.00022,7]
[332813256,1721545841271,-151.0,0.00022,7]
[332813257,1721545841281,-151.0,0.00022,7]
[332813258,1721545841291,-151.0,0.00022,7]
[332813259,1721545841304,-297.98002003,0.0002215,2]
[332813260,1721545841314,-1000.0,0.0002226,2]
[332813261,1721545841323,-347.805978,0.0002226,7]
[332813262,1721545841333,-347.805978,0.0002226,7]
[332813263,1721545841343,-492.0,0.000224,5]
[332813264,1721545841352,-150.0,0.00022488,2]
[332813265,1721545841362,-167.149442,0.0002249,7]
[332813266,1721545841372,-167.149442,0.0002249,7]
[332813267,1721545841383,-12790.35705812,0.000225,3]
[332813268,1721545841392,-151.0,0.000225,7]
[332813269,1721545841402,-1000.0,0.00022534,2]
[332813270,1721545841411,-500.0,0.00022534,2]
[332813271,1721545841420,-151.0,0.00022562,7]
[332813273,1721545841431,-151.0,0.00022562,7]
[332813275,1721545841440,-183.422278,0.00022562,7]
[332813276,1721545841450,-183.422278,0.00022562,7]
[332813278,1721545841459,-188.836659,0.00022562,7]
[332813281,1721545841470,-151.0,0.00022562,7]
[332813283,1721545841480,-151.0,0.00022562,7]